Cogmind - Beta 14 @@@ ROGUE MODE // 2024.09.24 @ 00:25:15 Player: BionicBot Result: Destroyed by G-50 Soldier with Heavy Laser Performance ------------- Evolutions (4) 2000 Regions Visited (10) 2000 Robots Destroyed (0) 0 Value Destroyed (0) 0 Prototype IDs (10) 200 Alien Tech Used (0) 0 Bonus (1419) 1419 TOTAL SCORE: 5619 Bonus ------- Pacifist 1419 Cogmind --------- Core Integrity 0/850 Matter 243/300 Energy 98/100 System Corruption 3% Temperature Cool (21) Movement Core (50) Location -6/Lower Caves Parts ------- > --- POWER (1) -------- (None) > --- PROPULSION (2) --- (None) > --- UTILITY (10) ----- Advanced Visual Processing Unit Improved Terrain Scan Processor Hacking Suite Hacking Suite Hacking Suite > --- WEAPON (2) ------- (None) > --- INVENTORY (5) ---- Improved Sensor Array Improved Datajack Powered Hammer Peak State ------------ > --- POWER ------------ (None) > --- PROPULSION ------- (None) > --- UTILITY ---------- Advanced Visual Processing Unit Improved Terrain Scan Processor Hacking Suite Hacking Suite Makeshift Hacking Suite System Shield > --- WEAPON ----------- Powered Hammer > --- INVENTORY -------- Improved Sensor Array ECM Suite Improved Datajack [Rating: 23] Favorites ----------- Power None Propulsion None Utility Hacking Suite Device ECM Suite Processor Improved Terrain Scan Processor Hackware Hacking Suite Weapon Powered Hammer Impact Weapon Powered Hammer Build | -11 -10 -10 -9 -9 -9 -8 -8 -7 -6 -6 ------- Run | Yrd Mat Min Mat Min Exi Min Mat Fac Fac Low Slots Evolved 8 | . . . 2 . . . 2 2 2 . Power . | . . . . . . . . . . . Propulsion . | . . . . . . . . . . . Utility 8 | . . . 2 . . . 2 2 2 . Weapon . | . . . . . . . . . . . Parts Attached 16 | . . . . . . . . 12 4 . Power . | . . . . . . . . . . . Engine . | . . . . . . . . . . . Core . | . . . . . . . . . . . Reactor . | . . . . . . . . . . . Propulsion . | . . . . . . . . . . . Treads . | . . . . . . . . . . . Leg . | . . . . . . . . . . . Wheel . | . . . . . . . . . . . Hover . | . . . . . . . . . . . Flight . | . . . . . . . . . . . Utility 10 | . . . . . . . . 8 2 . Device 3 | . . . . . . . . 2 1 . Storage . | . . . . . . . . . . . Processor 2 | . . . . . . . . 2 . . Hackware 5 | . . . . . . . . 4 1 . Protection . | . . . . . . . . . . . Artifact . | . . . . . . . . . . . Weapon 6 | . . . . . . . . 4 2 . Energy Gun . | . . . . . . . . . . . Energy Cannon . | . . . . . . . . . . . Ballistic Gun . | . . . . . . . . . . . Ballistic Cannon . | . . . . . . . . . . . Launcher . | . . . . . . . . . . . Special Weapon . | . . . . . . . . . . . Impact Weapon 6 | . . . . . . . . 4 2 . Slashing Weapon . | . . . . . . . . . . . Piercing Weapon . | . . . . . . . . . . . Special Melee Weapon . | . . . . . . . . . . . Unidentified Prototypes . | . . . . . . . . . . . Parts Lost 3 | . . . . . . . . . 3 . Power . | . . . . . . . . . . . Propulsion . | . . . . . . . . . . . Utility 3 | . . . . . . . . . 3 . Weapon . | . . . . . . . . . . . Highest Loss Streak 2 | . . . . . . . . . 2 . To Critical Strikes . | . . . . . . . . . . . Average Slot Usage (%) 22 | . . . . . . . . 32 40 33 Device 2 | . . . . . . . . 3 4 . Processor 6 | . . . . . . . . 8 13 13 Hackware 12 | . . . . . . . . 18 21 20 Peak Build Rating 23 | . . . . . . . 1 23 23 16 Average Rating 9 | . . . . . . . . 13 17 16 On Entrance 3 | . . . . . . . . 1 23 16 Naked Turns 543 | . 94 13 79 53 103 73 126 2 . . Heaviest Build 5 | . . . . . . . . 3 5 . Greatest Support 3 | 3 3 3 3 3 3 3 3 3 3 3 Greatest Overweight (x) 1 | . . . . . . . . . 1 . Average Overweight (x) . | . . . . . . . . . . . Largest Inventory Capacity 5 | 5 5 5 5 5 5 5 5 5 5 5 Average Capacity 5 | 5 5 5 5 5 5 5 5 5 5 5 Most Carried 5 | . 2 2 2 2 3 4 5 5 4 3 Average Carried 3 | . 1 2 2 2 2 3 4 3 2 3 Final Capacity 5 | 5 5 5 5 5 5 5 5 5 5 5 Final Carried 5 | . 2 2 2 2 3 4 5 3 3 3 Class Distribution -------------------- 64% | Hacker-Mutant 35% | Mutant Dominant Class ---------------- Mutant | -10/Materials Mutant | -10/Mines Mutant | -9/Materials Mutant | -9/Mines Mutant | -9/Exiles Mutant | -8/Mines Mutant | -8/Materials Hacker-Mutant | -7/Factory Hacker-Mutant | -6/Factory Hacker-Mutant | -6/Lower Caves Resources | -11 -10 -10 -9 -9 -9 -8 -8 -7 -6 -6 ----------- Run | Yrd Mat Min Mat Min Exi Min Mat Fac Fac Low Matter Collected 301 | 200 . . . . . . . . . 101 Remotely . | . . . . . . . . . . . Salvage Created . | . . . . . . . . . . . Parts . | . . . . . . . . . . . Haulers Intercepted . | . . . . . . . . . . . Recyclers Shooed . | . . . . . . . . . . . Parts Field Recycled . | . . . . . . . . . . . Retrieved Matter . | . . . . . . . . . . . Parts Self-Destructed 1 | . . . . . . . . . . 1 Prevented 1 | . . . . . . . . . . 1 Kills | -11 -10 -10 -9 -9 -9 -8 -8 -7 -6 -6 ------- Run | Yrd Mat Min Mat Min Exi Min Mat Fac Fac Low Combat Hostiles Destroyed . | . . . . . . . . . . . Classes Destroyed . | . . . . . . . . . . . Best Kill Streak . | . . . . . . . . . . . Combat Bots Only . | . . . . . . . . . . . Max Kills in Single Turn . | . . . . . . . . . . . Gunslinging . | . . . . . . . . . . . Exploded . | . . . . . . . . . . . Melee . | . . . . . . . . . . . Uniques/NPCs Destroyed . | . . . . . . . . . . . Combat | -11 -10 -10 -9 -9 -9 -8 -8 -7 -6 -6 -------- Run | Yrd Mat Min Mat Min Exi Min Mat Fac Fac Low Hostile Shots Fired 254 | . 4 . 40 . . . 18 62 102 28 Missed 115 | . 3 . 15 . . . 5 32 47 13 Damage Taken 1816 | . 11 . 224 . . . 191 447 675 268 Core 1672 | . 11 . 224 . . . 191 396 582 268 Absorbed by Shields . | . . . . . . . . . . . Core Remaining (%) 69 | 100 . 95 . . . 44 65 43 . . Volleys Fired . | . . . . . . . . . . . Largest . | . . . . . . . . . . . Hottest . | . . . . . . . . . . . Shots Fired . | . . . . . . . . . . . Gun . | . . . . . . . . . . . Cannon . | . . . . . . . . . . . Launcher . | . . . . . . . . . . . Special . | . . . . . . . . . . . Kinetic . | . . . . . . . . . . . Thermal . | . . . . . . . . . . . Explosive . | . . . . . . . . . . . Electromagnetic . | . . . . . . . . . . . Robot Hit Streak . | . . . . . . . . . . . Robot Miss Streak . | . . . . . . . . . . . Penetration Max . | . . . . . . . . . . . Secondary Targets . | . . . . . . . . . . . Shots Hit Robots . | . . . . . . . . . . . Core Hits . | . . . . . . . . . . . Critical Kills . | . . . . . . . . . . . Critical Parts Destroyed . | . . . . . . . . . . . Critical Strikes . | . . . . . . . . . . . Melee Attacks 12 | . . . . . . . . 8 4 . Impact 12 | . . . . . . . . 8 4 . Slashing . | . . . . . . . . . . . Piercing . | . . . . . . . . . . . Sneak Attacks . | . . . . . . . . . . . Combat Hostiles . | . . . . . . . . . . . Follow-up Attacks . | . . . . . . . . . . . Damage Inflicted . | . . . . . . . . . . . Guns . | . . . . . . . . . . . Cannons . | . . . . . . . . . . . Explosions . | . . . . . . . . . . . Melee . | . . . . . . . . . . . Ramming . | . . . . . . . . . . . Kinetic . | . . . . . . . . . . . Thermal . | . . . . . . . . . . . Explosive . | . . . . . . . . . . . Electromagnetic . | . . . . . . . . . . . Impact . | . . . . . . . . . . . Slashing . | . . . . . . . . . . . Piercing . | . . . . . . . . . . . Highest Corruption 3 | . . . . . . . . 2 3 3 Average Corruption 2 | . . . . . . . . 2 2 3 Corruption Purged . | . . . . . . . . . . . Corruption Blocked . | . . . . . . . . . . . Effects 11 | . . . . . . . . 7 4 . Message Errors 5 | . . . . . . . . 4 1 . Matter Fused 2 | . . . . . . . . 1 1 . Energy Discharges 2 | . . . . . . . . 1 1 . Data Loss (major) 2 | . . . . . . . . 1 1 . Overload Shots . | . . . . . . . . . . . Overflow Damage . | . . . . . . . . . . . Projectiles . | . . . . . . . . . . . Explosions . | . . . . . . . . . . . Melee . | . . . . . . . . . . . Knockbacks . | . . . . . . . . . . . Impact . | . . . . . . . . . . . Kinetic . | . . . . . . . . . . . Secondary . | . . . . . . . . . . . Self-Inflicted Damage . | . . . . . . . . . . . Shots . | . . . . . . . . . . . Rammed . | . . . . . . . . . . . Targets Rammed . | . . . . . . . . . . . Kicked . | . . . . . . . . . . . Crushed . | . . . . . . . . . . . Highest Temperature 9 | . . . . . . . . . . 9 Average Temperature 8 | . . . . . . . . . . 8 Received Heat Transfer 400 | . 6 . 18 . . . 90 99 66 121 Siege Activations . | . . . . . . . . . . . Robots Corrupted . | . . . . . . . . . . . Combat Hostiles . | . . . . . . . . . . . Parts Fried . | . . . . . . . . . . . Impact Corruptions . | . . . . . . . . . . . Robots Melted . | . . . . . . . . . . . Combat Hostiles . | . . . . . . . . . . . Parts Melted . | . . . . . . . . . . . Heat Transferred . | . . . . . . . . . . . Parts Sabotaged . | . . . . . . . . . . . Parts Stolen . | . . . . . . . . . . . Parts Stripped . | . . . . . . . . . . . Power Chain Reactions . | . . . . . . . . . . . Alert | -11 -10 -10 -9 -9 -9 -8 -8 -7 -6 -6 ------- Run | Yrd Mat Min Mat Min Exi Min Mat Fac Fac Low Peak Influence 260 | . 62 24 134 52 . 15 30 260 197 . Initial 52 | . . 24 9 52 . . 5 13 22 . Average 75 | . 44 24 45 52 . 2 18 95 107 . Maximum Alert Level 1 | . . . . . . . . 1 . . Low Security (%) 96 | 100 100 100 100 100 . 100 100 92 100 . Level 1 3 | . . . . . . . . 7 . . Level 2 . | . . . . . . . . . . . Level 3 . | . . . . . . . . . . . Level 4 . | . . . . . . . . . . . Level 5 . | . . . . . . . . . . . High Security . | . . . . . . . . . . . Max Security . | . . . . . . . . . . . Squads Dispatched 6 | . . . . . . . . 1 5 . Investigation 3 | . . . . . . . . . 3 . Extermination . | . . . . . . . . . . . Reinforcement 3 | . . . . . . . . 1 2 . Assault . | . . . . . . . . . . . Garrison . | . . . . . . . . . . . Intercept . | . . . . . . . . . . . Searches Triggered . | . . . . . . . . . . . Construction Impeded . | . . . . . . . . . . . Haulers Reinforced . | . . . . . . . . . . . Active Scanning Responses . | . . . . . . . . . . . Cargo Convoy Interrupts 1 | . . . . . . . . 1 . . Stealth | -11 -10 -10 -9 -9 -9 -8 -8 -7 -6 -6 --------- Run | Yrd Mat Min Mat Min Exi Min Mat Fac Fac Low Distress Signals 4 | . 1 . 1 . . . . 2 . . Communications Jammed . | . . . . . . . . . . . Distress Signals . | . . . . . . . . . . . Times Spotted 89 | . 4 . 11 . . 3 2 37 19 13 Peak Tracking Total 9 | . 3 . 7 . . 3 2 9 8 7 Tactical Retreats 20 | . 1 . 2 . . . . 11 3 3 Traps | -11 -10 -10 -9 -9 -9 -8 -8 -7 -6 -6 ------- Run | Yrd Mat Min Mat Min Exi Min Mat Fac Fac Low Traps Triggered 4 | . . . . . . . . 2 2 . Indirectly . | . . . . . . . . . . . Trap Hack Attempts . | . . . . . . . . . . . Triggered . | . . . . . . . . . . . Disarmed . | . . . . . . . . . . . Reprogrammed . | . . . . . . . . . . . Reused . | . . . . . . . . . . . Traps Extracted . | . . . . . . . . . . . Installed . | . . . . . . . . . . . Triggered 2 | . . . . . . . . . . 2 Machines | -11 -10 -10 -9 -9 -9 -8 -8 -7 -6 -6 ---------- Run | Yrd Mat Min Mat Min Exi Min Mat Fac Fac Low Machines Disabled . | . . . . . . . . . . . Max in Single Turn . | . . . . . . . . . . . Garrison Access 2 | . . . . . . . . 1 1 . Machines Repaired . | . . . . . . . . . . . Machines Dismantled . | . . . . . . . . . . . Machines Sabotaged . | . . . . . . . . . . . Overloaded Fab Kills . | . . . . . . . . . . . Hacking | -11 -10 -10 -9 -9 -9 -8 -8 -7 -6 -6 --------- Run | Yrd Mat Min Mat Min Exi Min Mat Fac Fac Low Machines Accessed 27 | . 2 . 3 . 1 . 7 9 5 . Terminals 22 | . 2 . 3 . . . 6 7 4 . Fabricators . | . . . . . . . . . . . Repair Stations . | . . . . . . . . . . . Recycling Units . | . . . . . . . . . . . Scanalyzers . | . . . . . . . . . . . Garrison Access 4 | . . . . . . . 1 2 1 . Total Hacks 67 | . 5 . 9 . 1 . 20 21 11 . Successful 33 | . 3 . 4 . 1 . 11 10 4 . Failed 34 | . 2 . 5 . . . 9 11 7 . Catastrophic 8 | . . . 1 . . . 2 3 2 . Database Lockouts . | . . . . . . . . . . . Manual 31 | . 1 . 5 . 1 . 8 8 8 . Terminals 59 | . 5 . 9 . . . 18 17 10 . Fabricators . | . . . . . . . . . . . Repair Stations . | . . . . . . . . . . . Recycling Units . | . . . . . . . . . . . Scanalyzers . | . . . . . . . . . . . Garrison Access 7 | . . . . . . . 2 4 1 . Terminal Hacks 24 | . 2 . 3 . 1 . 8 8 2 . Record 4 | . . . 1 . 1 . 2 . . . Part Schematic 1 | . . . . . . . . 1 . . Robot Analysis 1 | . . . 1 . . . . . . . Prototype ID Bank 5 | . 2 . . . . . 1 2 . . Level Access Points 3 | . . . . . . . 1 1 1 . Emergency Access Points 1 | . . . . . . . . . 1 . Terminal Index 2 | . . . 1 . . . . 1 . . Unreport Threat 4 | . . . . . . . 2 2 . . Locate Traps 1 | . . . . . . . . 1 . . Zone Layout 2 | . . . . . . . 2 . . . Fabricator Hacks . | . . . . . . . . . . . Repair Station Hacks . | . . . . . . . . . . . Recycling Unit Hacks . | . . . . . . . . . . . Scanalyzer . | . . . . . . . . . . . Garrison Access Hacks 2 | . . . . . . . . 1 1 . Seal Access 2 | . . . . . . . . 1 1 . Unauthorized Hacks 7 | . 1 . 1 . . . 3 1 1 . Terminals 7 | . 1 . 1 . . . 3 1 1 . Assimilate 1 | . . . . . . . . . 1 . Botnet 6 | . 1 . 1 . . . 3 1 . . Fabricators . | . . . . . . . . . . . Repair Stations . | . . . . . . . . . . . Recycling Units . | . . . . . . . . . . . Scanalyzers . | . . . . . . . . . . . Garrison Access . | . . . . . . . . . . . Data Cores Recovered . | . . . . . . . . . . . Used . | . . . . . . . . . . . Hacking Detections 22 | . 2 . 3 . . . 6 8 3 . Full Trace Events 2 | . . . . . . . . . 2 . Feedback Events . | . . . . . . . . . . . Feedback Blocked . | . . . . . . . . . . . Robot Schematics Acquired . | . . . . . . . . . . . Robots Built . | . . . . . . . . . . . Authchips . | . . . . . . . . . . . Time . | . . . . . . . . . . . Total Robot Build Rating . | . . . . . . . . . . . Part Schematics Acquired 1 | . . . . . . . . 1 . . Parts Built . | . . . . . . . . . . . Authchips . | . . . . . . . . . . . Time . | . . . . . . . . . . . Total Part Build Rating . | . . . . . . . . . . . Parts Repaired . | . . . . . . . . . . . Time . | . . . . . . . . . . . Parts Recycled . | . . . . . . . . . . . Recycled Matter . | . . . . . . . . . . . Retrieved Matter . | . . . . . . . . . . . Retrieved Components . | . . . . . . . . . . . Parts Scanalyzed . | . . . . . . . . . . . Part Schematics Acquired . | . . . . . . . . . . . Parts Damaged . | . . . . . . . . . . . Bothacking | -11 -10 -10 -9 -9 -9 -8 -8 -7 -6 -6 ------------ Run | Yrd Mat Min Mat Min Exi Min Mat Fac Fac Low Used RIF Installer . | . . . . . . . . . . . Robots Hacked . | . . . . . . . . . . . Non-combat . | . . . . . . . . . . . Combat . | . . . . . . . . . . . Robot Hacks Applied . | . . . . . . . . . . . Relay Couplers Released . | . . . . . . . . . . . Fabnet Peak Effective % . | . . . . . . . . . . . Robots Rewired . | . . . . . . . . . . . Allies Hacked . | . . . . . . . . . . . Hacks Repelled . | . . . . . . . . . . . Allies | -11 -10 -10 -9 -9 -9 -8 -8 -7 -6 -6 -------- Run | Yrd Mat Min Mat Min Exi Min Mat Fac Fac Low Total Allies . | . . . . . . . . . . . Largest Group . | . . . . . . . . . . . Highest-Rated Group . | . . . . . . . . . . . Highest-Rated Ally . | . . . . . . . . . . . Total Orders . | . . . . . . . . . . . Ally Attacks . | . . . . . . . . . . . Total Damage . | . . . . . . . . . . . Kills . | . . . . . . . . . . . Allies Corrupted . | . . . . . . . . . . . Allies Melted . | . . . . . . . . . . . Intel | -11 -10 -10 -9 -9 -9 -8 -8 -7 -6 -6 ------- Run | Yrd Mat Min Mat Min Exi Min Mat Fac Fac Low Robot Analysis Total 1 | . . . 1 . . . . . . . Derelict Logs Recovered 1 | . . . . . . . . . . 1 Drone Launches . | . . . . . . . . . . . Drone Recoveries . | . . . . . . . . . . . Exploration | -11 -10 -10 -9 -9 -9 -8 -8 -7 -6 -6 ------------- Run | Yrd Mat Min Mat Min Exi Min Mat Fac Fac Low Turns Passed 1493 | 11 94 13 79 53 103 73 126 603 275 63 Spaces Moved 2662 | 22 159 26 157 103 204 113 247 994 511 126 Core 2662 | 22 159 26 157 103 204 113 247 994 511 126 Treads . | . . . . . . . . . . . Legs . | . . . . . . . . . . . Wheels . | . . . . . . . . . . . Hover . | . . . . . . . . . . . Flight . | . . . . . . . . . . . Fastest Speed 50 | 50 50 50 50 50 50 50 50 50 50 50 Average Speed 50 | 50 50 50 50 50 50 50 50 50 50 50 Slowest Speed 100 | 50 50 50 50 50 50 50 50 50 100 50 Overloaded Moves . | . . . . . . . . . . . Propulsion Burnouts . | . . . . . . . . . . . Robots Hopped . | . . . . . . . . . . . Cave-ins Triggered . | . . . . . . . . . . . Exploration Rate (%) 27 | 3 25 13 23 28 60 43 33 40 17 21 Regions Visited 10 Branch Regions 5 Pre-discovered Areas 1 | . . . . . 1 . . . . . Known Exits Taken 2 | . . . . . . . 1 1 . . Unknown Exits Taken 8 | 1 1 1 1 1 1 1 . . 1 . Scrap Searched 4 | . . . . 1 . 1 . . . 2 Spaces Dug 11 | . . . . . . . . 8 3 . Terrain Destroyed 11 | . . . . . . . . 8 3 . Melee 11 | . . . . . . . . 8 3 . Projectile . | . . . . . . . . . . . AOE . | . . . . . . . . . . . Terrain Rammed . | . . . . . . . . . . . Walls Destroyed . | . . . . . . . . . . . Machines Disabled . | . . . . . . . . . . . Actions | -11 -10 -10 -9 -9 -9 -8 -8 -7 -6 -6 --------- Run | Yrd Mat Min Mat Min Exi Min Mat Fac Fac Low Total 2793 | 21 172 25 156 103 204 128 249 1086 523 126 Wait 94 | . 12 . . 1 . 15 . 64 2 . Move 2652 | 21 158 25 156 102 203 112 246 993 510 126 Hop . | . . . . . . . . . . . Pick Up 9 | . 2 . . . 1 1 2 3 . . Fast Attach 4 | . . . . . . . . 3 1 . Attach 12 | . . . . . . . . 9 3 . Detach 8 | . . . . . . . . 5 3 . Swap . | . . . . . . . . . . . Drop 2 | . . . . . . . 1 1 . . Fire . | . . . . . . . . . . . Melee 12 | . . . . . . . . 8 4 . Ram . | . . . . . . . . . . . Kick . | . . . . . . . . . . . Crush . | . . . . . . . . . . . Escape Stasis . | . . . . . . . . . . . Rewire . | . . . . . . . . . . . Trap . | . . . . . . . . . . . Miscellaneous . | . . . . . . . . . . . Route ------- -11/Scrapyard -10/Materials -10/Mines -9/Materials -9/Mines -9/Exiles -8/Mines -8/Materials (discovered 3 exits: *Fac x3) -7/Factory (discovered 5 exits: *Fac x4 / [*Sto]) -6/Factory (discovered 5 exits: Fac x4 / [*Low]) -6/Lower Caves History --------- Turn | Location | Event 5 | -11/Scrapyard | Discovered new exit (range 15) 12 | -11/Scrapyard | Entered Materials 36 | -10/Materials | Discovered new exit (range 10) 106 | -10/Materials | Entered Mines 114 | -10/Mines | Discovered new exit (range 11) 119 | -10/Mines | Entered Materials 119 | -9/Materials | Evolved 2 slots: Utility x2 194 | -9/Materials | Core integrity fell below 50% 194 | -9/Materials | Discovered new exit (range 9) 198 | -9/Materials | Entered Mines 246 | -9/Mines | Deemed a non-threat by the Exiles lab entrance 246 | -9/Mines | Discovered new exit (range 5) 251 | -9/Mines | Entered Exiles 251 | -9/Exiles | Found Exiles lab destroyed 305 | -9/Exiles | Build established: Mutant 307 | -9/Exiles | Opened EX-Vault 336 | -9/Exiles | Learned location of Zion (-6) 350 | -9/Exiles | Discovered new exit (range 10) 354 | -9/Exiles | Entered Mines 424 | -8/Mines | Discovered new exit (range 5) 427 | -8/Mines | Entered Materials 427 | -8/Materials | Evolved 2 slots: Utility x2 435 | -8/Materials | Identified exit to Factory 553 | -8/Materials | Entered Factory 553 | -7/Factory | Evolved 2 slots: Utility x2 857 | -7/Factory | Build established: Hacker-Mutant 966 | -7/Factory | Discovered new exit (range 13) 1125 | -7/Factory | Identified exit to Factory 1145 | -7/Factory | Cargo convoy interrupted 1151 | -7/Factory | Core integrity fell below 50% 1156 | -7/Factory | Entered another Factory area 1156 | -6/Factory | Evolved 2 slots: Utility x2 1243 | -6/Factory | Identified exit to Factory 1373 | -6/Factory | Discovered new exit (range 20) 1389 | -6/Factory | Core integrity fell below 50% 1431 | -6/Factory | Entered Lower Caves 1448 | -6/Lower Caves | Learned Factory security intel 1458 | -6/Lower Caves | Core integrity fell below 20% 1471 | -6/Lower Caves | Attracted the attention of an 0b10 outpost 1494 | -6/Lower Caves | Destroyed by G-50 Soldier with Heavy Laser Last Messages --------------- 01449_ Found Focal Shield. 01449_ Found Weapon Cycler. 01449_ Found 44 Matter. 01450_ Acquired 44 matter. 01469_ Searching scrap... 01469_ Found Lrg. Matter Pod. 01469_ Found Com. Matter Pod. 01469_ Found Hcp. Matter Pod. 01469_ Found Mak. Hammer. 01469_ Found 57 Matter. 01470_ Acquired 57 matter. 01471_ Y-64 Sentinel: "DETECTED UNIDENTIFIED DERELICT." 01472_ Slug penetrates BK-E99(S). 01475_ Y-64 Sentinel: "REQUESTING BACKUP." 01475_ Slug penetrates BK-E99(S). 01476_ B-48 Gladiator sneak attacks. 01476_ BK-E99(S) system corrupted by crushing effect. 01476_ BK-E99(S) destroyed. 01491_ Critical hit (Burn: +50). 01492_ Critical hit (Burn: +37). Map ----- +----------------------------------------------------+ | ?????????????????????????????????????????????????? | | ?????????????????????????????????????????????????? | | ?????????????????????????????????????????????????? | | ?????????????????????????????????????????????????? | | ?????????????????????????????????????????????????? | | ?????????????????????????????????????????????????? | | ?????????????????????????????????????????????????? | | ?????????????????????????????????????????????????? | | ?????????????????????????#??????????????#######??? | | ????????????????# ???### ?????????????## ##?? | | ?????????????? #?## ##???????????# #?? | | ??????????????? ## ???????????# #?? | | ??????????????? ???????????# #?? | | ???????????????? ??????????## #?? | | ????????????????? ?????????## ### | | ?????????????????? #?????????# | | ??????????????##??# #?????????# | | ?????????????## ## #?????????# ## | | ?????????????? ##????????#???# | | ???????????????? #????????##### | | ?????????????????# ??####??## | | ??????????????????# ??# #### | | ???????????????????# #?## s | | ??????????????????????# ### ## | | ??????????????????????# g ## | | ??????????????????????# @ g ### # | | ??????????????????????# g ## ### ##?## # | | ??????????????????????### ##########?###???## | | ????????????????????????#####???##????????##### | | ???????????????????????????????## ##??????# ## | | ???????????????????????????????# ######## | | ????????????????????????????????# ## | | ?????????????????????????????????# | | ?????????????????????????????????# %## | | #?????????????????????????###???## ### | | ?????????????????##### ##??# ####?## | | ???# #########????# ##?# ##?????# # | | ???# #????# ## ### ##??????##### | | ???????# #????# ### !/ ! #???????????# | | ???????######### ###### ### ###! #???????????# | | ????????????#### ## ### #???????????# | | ????????????# ## !] ##??????????### | | ????????????## #### ! #????????????? | | ?????????????# #??# ### #??????????? | | ?????????????# #?# ###?## #?????????? | | ????????????# ###?## ##????# ## #????????? | | ????????????#####????####?????######?####????????? | | ?????????????????????????????????????????????????? | | ?????????????????????????????????????????????????? | | ?????????????????????????????????????????????????? | +----------------------------------------------------+ Best States ------------- Heat Dissipation 37 Energy Generation 5 Energy Capacity 100 Matter Stores 300 Matter Capacity 300 Sight Range 20 Terrain Scan Density 110 ECM Strength 1 Evasion (%) 50 Offensive Hacking 31 Defensive Hacking 10 Item Schematics ----------------- Signal Interpreter | -7/Factory | Hacked Robot Schematics ------------------ None Fabricated ------------ Nothing Alien Tech Used ----------------- None Achievements -------------- None Challenges ------------ None Game ------ Seed AntimatterTerrainWartreads Manual? 0 Play Time 00:29:11 Cumulative 145.0 hours Start 2024.09.23 @ 23:57:00 End 2024.09.24 @ 00:25:15 Sessions 1 Manual Loads 0 Difficulty Rogue Special Mode None Game No. 115 Rogue 115 Adventurer 0 Explorer 0 Win Type - Total 6 Types 5/0/1/0/0/0/0/0/0 Lore% 43 Gallery% 56 Achievement% 53 Wizard Run 0 Options --------- Layout 0 ASCII 0 Keyboard 1 Movement Numpad Keybinds 0 Fullscreen 2 Font 18/X11 Map View 76x50 Zoom Use 0% Tactical HUD 1 Map Filters NONE Filters NONE Steam 1 RUN: 866f3702-4736-4d7d-b645-a695df43b8dd